[Event "Serbian-ch Semifinal 2024"]
[Site "Paracin"]
[Date "2024.02.06"]
[Round "2.7"]
[White "Gagic, Miroljub"]
[Black "Radovanovic, Nikola"]
[Result "0-1"]
[ECO "A49"]
[WhiteElo "1596"]
[BlackElo "2446"]
[Annotator "TA"]
[PlyCount "54"]
[EventDate "2024.02.04"]
[EventType "swiss"]
[EventCountry "SRB"]
[SourceTitle "playchess.com"]
[Source "ChessBase"]
[SourceQuality "1"]
[TimeControl "40/5400+30:1800+30"]

{[%evp 15,54,9,0,-5,10,0,-6,-14,-16,-25,-18,-21,-18,-38,0,-34,-16,-19,-17,-23,-14,-21,-6,-20,-10,-52,-50,-66,-69,-85,-72,-86,-56,-87,-56,-48,-55,-59,-29,-191,-193]} 1. Nf3 {[%emt 0:00:23]} g6 {[%emt 0:00:50]} 2. d4 {[%emt 0:01:52]} Nf6 {[%emt 0:00:45]} 3. g3 {[%emt 0:00:21]} Bg7 {[%emt 0:00:15]} 4. Bg2 {[%emt 0:00:22]} O-O {[%emt 0:02:46]} 5. O-O {[%emt 0:00:22]} d6 {[%emt 0:00:11]} 6. b3 {[%emt 0:01:38]} b5 {[%emt 0:02:55]} 7. Bb2 {[%emt 1:29:02]} Bb7 {[%emt 0:00:59]} 8. Nbd2 {[%emt 0:00:00]} Nbd7 {[%emt 0:00:52]} 9. c4 {[%emt 0:00:00]} bxc4 {[%emt 0:00:19]} 10. Nxc4 {[%emt 0:00:00]} a5 {[%emt 0:00:14]} 11. a4 {[%emt 0:00:00] The position is equal.} c5 {[%emt 0:08:17]} 12. e3 {[%emt 0:00:00]} Ra6 {[%emt 0:01:03]} 13. Re1 {[%emt 0:00:00]} Qa8 {[%emt 0:00:32]} 14. Ncd2 {[%emt 0:00:00]} Rb8 {[%emt 0:11:00]} 15. Rc1 {[%emt 0:00:00][%cal Oe3e4]} Ne4 {[%emt 0:15:07] [#] aiming for ...Nxd2.} 16. Bf1 {[%emt 0:00:00]} Ra7 {[%emt 0:05:31]} 17. Nxe4 {[%emt 0:00:00]} Bxe4 {[%emt 0:00:18]} 18. Nd2 {[%emt 0:00:00]} Bc6 {[%emt 0:02:14]} 19. Qc2 {[%emt 0:00:00]} Rc7 {[%emt 0:07:37]} 20. Bc3 {[%emt 0:01:04]} cxd4 {[%emt 0:03:48]} 21. exd4 {[%emt 0:01:14]} Nf6 {[%emt 0:03:00][%cal Bd7f6,Bf6d5,Bd5b4][%mdl 32]} 22. Qd3 {[%emt 0:00:55]} Nd5 {[%emt 0:02:32]} 23. Ba1 {[%emt 0:01:37]} Nb4 {[%emt 0:02:02]} 24. Qe2 {[%emt 0:02:23]} Rbc8 {[%emt 0:00:21][%cal Oc6f3] Black is more active.} 25. Nc4 {[%emt 0:00:42]} Qa7 {[%emt 0:00:44][%cal Oc6a8] Inhibits Nb6.} 26. Qd2 {[%emt 0:00:27]} Ba8 {[%emt 0:00:37] And now ...Qb7 would win.} 27. Bc3 $2 {[%emt 0:00:32] [#]} (27. Bg2 $11 {and White is okay.}) 27... Qb7 $1 {[%emt 0:02:45] Weighted Error Value: White=0.24 (precise) /Black=0.09 (flawless) .  Loses game:     	White=1     	---        Inaccurate:     	White=3     	Black=4      OK:         	White=5     	Black=9      Strong:       	---       	Black=1} 0-1

[Event "Serbian-ch Semifinal 2024"]
[Site "Paracin"]
[Date "2024.02.06"]
[Round "2.8"]
[White "Pap, Misa"]
[Black "Jocev, Milan"]
[Result "1-0"]
[ECO "C84"]
[WhiteElo "2422"]
[BlackElo "2376"]
[Annotator "TA"]
[PlyCount "73"]
[EventDate "2024.02.04"]
[EventType "swiss"]
[EventCountry "SRB"]
[SourceTitle "playchess.com"]
[Source "ChessBase"]
[SourceQuality "1"]
[TimeControl "40/5400+30:1800+30"]

{[%evp 15,73,21,15,0,5,-40,0,-3,0,0,0,-18,-6,-2,10,6,18,12,22,-12,42,44,34,33,49,48,51,51,73,60,104,56,58,40,45,20,37,27,137,24,22,16,29,-10,0,0,58,53,95,101,270,174,250,303,280,266,512,495,632,389]} 1. e4 {[%emt 0:06:28]} e5 {[%emt 0:00:08]} 2. Nf3 {[%emt 0:00:40]} Nc6 {[%emt 0:00:07]} 3. Bb5 {[%emt 0:00:48][%cal Bf1b5,Bb5a4,Ba4b3][%mdl 32]} a6 {[%emt 0:00:24]} 4. Ba4 {[%emt 0:00:07]} Nf6 {[%emt 0:00:09]} 5. O-O {[%emt 0:00:10]} Be7 {[%emt 0:00:28]} 6. d3 {[%emt 0:00:36]} b5 {[%emt 0:00:33]} 7. Bb3 {[%emt 0:00:07]} d6 {[%emt 0:00:35]} 8. a4 {[%emt 0:00:18]} Bd7 {[%emt 0:04:09]} 9. a5 {[%emt 0:03:57]} O-O {[%emt 0:06:19]} 10. Nbd2 {[%emt 0:02:26][%cal Bb1d2,Bd2f1,Bf1g3][%mdl 32]} h6 {[%emt 0:02:57]} 11. Re1 {[%emt 0:03:56] The position is equal.} Re8 {[%emt 0:02:17]} 12. c3 {[%emt 0:00:10]} Bf8 {[%emt 0:01:12]} 13. Nf1 {[%emt 0:00:33]} Ne7 {[%emt 0:09:40]} 14. d4 {[%emt 0:03:03]} Ng6 {[%emt 0:01:05]} 15. Ng3 {[%emt 0:00:20]} Qc8 {[%emt 0:02:04]} 16. Bc2 {[%emt 0:11:31]} c5 {[%emt 0:29:30]} 17. h3 {[%emt 0:11:40] Dodges Bg4} Qb7 {[%emt 0:03:46]} (17... cxd4 $11 18. cxd4 exd4) 18. Be3 {[%emt 0:10:16]} Rad8 {[%emt 0:05:47]} 19. d5 {[%emt 0:00:17]} Qc8 {[%emt 0:04:58]} 20. Qd2 {[%emt 0:07:02]} Kh8 {[%emt 0:03:28]} 21. Kh2 {[%emt 0:01:32]} Ng8 {[%emt 0:06:09]} 22. b4 {[%emt 0:08:09]} Qa8 {[%emt 0:02:47]} 23. Rad1 {[%emt 0:04:49]} (23. c4 $16) 23... Rc8 {[%emt 0:01:39]} 24. bxc5 {[%emt 0:00:38]} dxc5 {[%emt 0:00:08]} 25. Nf5 {[%emt 0:00:10][%cal Oc3c4]} Qb8 {[%emt 0:02:23]} (25... Nf6 {feels hotter.} 26. Bxh6 gxh6 27. Nxh6 Kh7) 26. g4 {[%emt 0:01:02]} Qc7 {[%emt 0:02:43] [#]} (26... Nf6 $11 {keeps the balance.}) 27. h4 {[%emt 0:01:19] White has more active pieces.} (27. d6 $1 $16 {[%cal Rd6c7]} Qxa5 28. g5) 27... Nf6 $11 {[%emt 0:02:39]} 28. Rg1 {[%emt 0:00:47] Threatens to win with h5.} Rcd8 $1 {[%emt 0:03:07][%cal Od7f5]} 29. Kh1 {[%emt 0:11:26][%cal Oc3c4]} (29. c4 $5) 29... h5 {[%emt 0:01:48]} 30. Ng5 $36 {[%emt 0:02:20][%mdl 2048] White is pushing.} Bc8 {[%emt 0:01:30]} ({Better is} 30... Kg8 $11) 31. f3 {[%emt 0:02:57][%cal Bf2f3,Bf3g4][%mdl 32]} hxg4 {[%emt 0:00:42] [#] ...Bxf5 would now be deadly.} 32. fxg4 {[%emt 0:00:27]} Bb7 $2 {[%emt 0:00:35] This costs Black the game.} (32... Kg8 $16) 33. c4 {[%emt 0:00:37] h5 is the strong threat.} bxc4 {[%emt 0:00:16]} (33... Rd7 {was necessary.} 34. Kh2 Kg8) 34. d6 $18 {[%emt 0:04:34]} Qd7 {[%emt 0:00:29]} 35. Qe2 {[%emt 0:00:59]} (35. Bxc5 Rc8 36. Ba3 Kg8 $11) 35... Nf4 $2 {[%emt 0:00:43]} (35... Nh7 {was worth a try.} 36. Qxc4 (36. Bxc5 Nf4 $11) (36. Nxh7 Kxh7 37. Qxc4 Nf4 $16) 36... Nxg5) 36. Qxc4 {[%emt 0:00:08]} Re6 {[%emt 0:00:42]} 37. Ba4 {[%emt 0:00:36] Weighted Error Value: White=0.19 (very precise) /Black=0.50.  Loses game:     	---       	Black=1      Mistake:       	White=2     	Black=5      Inaccurate:     	White=5     	Black=3      OK:         	White=10    	Black=4      Best:        	White=1     	---        Strong:       	---       	Black=1} 1-0

[Event "Serbian-ch Semifinal 2024"]
[Site "Paracin"]
[Date "2024.02.06"]
[Round "2.9"]
[White "Bryakin, Mikhail"]
[Black "Cuzovic, Ognjen"]
[Result "1-0"]
[ECO "D31"]
[WhiteElo "2479"]
[BlackElo "2068"]
[Annotator "TA"]
[PlyCount "131"]
[EventDate "2024.02.04"]
[EventType "swiss"]
[EventCountry "SRB"]
[SourceTitle "playchess.com"]
[Source "ChessBase"]
[SourceQuality "1"]
[TimeControl "40/5400+30:1800+30"]

{[%evp 15,131,14,15,14,14,12,15,14,17,14,17,10,11,4,12,-27,-22,-47,-41,-47,-35,-58,-64,-50,-45,-91,-61,-55,-66,-64,-84,-93,-34,-39,-36,-37,-20,-29,0,-16,-16,-33,-46,-35,-30,-31,-24,-27,-30,-43,-42,-50,-44,-39,-39,-45,-37,-38,-34,-34,-34,-41,-34,-42,-34,-36,-31,-25,0,0,0,0,0,0,0,0,0,0,0,0,0,0,160,149,143,0,0,0,435,435,398,391,253,258,397,637,662,592,378,0,0,0,0,0,0,0,0,0,0,0,29974,29973,29992,29993,29993,29994,29994,29994]} 1. c4 {[%emt 0:04:19]} Nf6 {[%emt 0:02:26]} 2. Nc3 {[%emt 0:00:12]} e6 {[%emt 0:00:26]} 3. d4 {[%emt 0:00:07]} d5 {[%emt 0:00:15]} 4. cxd5 {[%emt 0:00:05]} exd5 {[%emt 0:00:15]} 5. Bf4 {[%emt 0:00:05]} Bd6 {[%emt 0:02:08]} 6. Bxd6 {[%emt 0:00:06]} Qxd6 {[%emt 0:00:11]} 7. e3 {[%emt 0:00:04]} c6 {[%emt 0:01:03]} 8. Bd3 {[%emt 0:00:13]} O-O {[%emt 0:01:48] D31: Queen's Gambit Declined: Semi-Slav without ...Nf6 (+ Marshall Gambit and Noteboom) and Exchange Variation lines without ...Nf6.} 9. h3 {[%emt 0:00:03]} Nbd7 {[%emt 0:02:49]} 10. Nf3 {[%emt 0:00:34]} Re8 {[%emt 0:01:35]} 11. Qc2 {[%emt 0:00:51]} b6 {[%emt 0:03:33]} 12. O-O {[%emt 0:00:26]} Bb7 $146 {[%emt 0:01:07]} ({Predecessor:} 12... c5 13. b3 Bb7 14. Rfd1 Rac8 15. Rac1 Ne4 16. Bxe4 dxe4 17. dxc5 Qe7 18. Ne1 Rxc5 {0-1 Sosovickova,J (1512)-Vozarova,A (1619) SVK-ch U14 Girls 2018 (4)}) 13. Rab1 {[%emt 0:01:17]} c5 {[%emt 0:07:20]} 14. Nb5 {[%emt 0:04:01]} Qc6 {[%emt 0:02:52]} 15. dxc5 {[%emt 0:01:02]} bxc5 {[%emt 0:01:44]} 16. b4 {[%emt 0:05:47]} a6 $1 {[%emt 0:08:46]} 17. Na3 {[%emt 0:06:07]} c4 {[%emt 0:11:39]} 18. Bf5 {[%emt 0:02:01]} Ne5 {[%emt 0:02:21]} 19. Nd4 {[%emt 0:00:33]} Qd6 {[%emt 0:00:49]} 20. Qe2 {[%emt 0:03:18]} (20. Qc3 $15) 20... Nc6 {[%emt 0:04:30]} 21. Qd2 {[%emt 0:07:58]} Qe5 {[%emt 0:04:30]} 22. Bc2 {[%emt 0:04:08]} Nxd4 {[%emt 0:01:20]} 23. exd4 {[%emt 0:03:54]} Qe2 {[%emt 0:03:27]} (23... Qd6 $17 24. Rbd1 Reb8) 24. Qxe2 $15 {[%emt 0:00:12]} Rxe2 {[%emt 0:00:11]} 25. Rfe1 {[%emt 0:00:05]} Rae8 {[%emt 0:01:47]} 26. Kf1 {[%emt 0:00:30]} Rd2 {[%emt 0:07:25]} 27. Rbd1 {[%emt 0:00:50]} Rxd1 {[%emt 0:01:07]} 28. Rxd1 {[%emt 0:01:59]} Bc6 {[%emt 0:01:04]} 29. Nb1 {[%emt 0:01:16]} Rb8 {[%emt 0:01:37]} 30. a3 {[%emt 0:00:27]} Ne8 {[%emt 0:00:28]} 31. Nc3 {[%emt 0:00:34]} Nc7 {[%emt 0:01:29]} 32. Ra1 {[%emt 0:00:51]} Kf8 {[%emt 0:03:04]} 33. Ke1 {[%emt 0:01:37]} Ke7 {[%emt 0:01:26]} 34. Kd2 {[%emt 0:00:08]} Kd6 {[%emt 0:00:46]} 35. h4 {[%emt 0:00:05]} g6 {[%emt 0:01:19]} 36. h5 {[%emt 0:00:46]} Nb5 {[%emt 0:08:14]} 37. Ne2 {[%emt 0:00:20]} Bd7 {[%emt 0:01:17]} 38. h6 {[%emt 0:02:09]} Nc7 {[%emt 0:02:34]} 39. f3 {[%emt 0:00:53]} f5 {[%emt 0:00:49]} 40. f4 {[%emt 0:04:44]} Nb5 {[%emt 0:01:40]} 41. Ba4 {[%emt 0:36:02]} Nxd4 {[%emt 0:10:01]} 42. Nxd4 {[%emt 0:00:00]} Bxa4 {[%emt 0:00:05]} 43. Re1 {[%emt 0:00:00]} Re8 {[%emt 0:01:55]} 44. Rxe8 {[%emt 0:00:00]} Bxe8 {[%emt 0:00:06]} 45. Kc3 {[%emt 0:00:00]} Bf7 {[%emt 0:03:13]} 46. Nf3 {[%emt 0:00:00]} Kc7 {[%emt 0:04:51]} 47. Kd4 {[%emt 0:00:00]} Kd6 {[%emt 0:00:08]} 48. Ne5 {[%emt 0:00:00]} Bg8 $2 {[%emt 0:01:56]} ({Black should play} 48... Be8 $11) 49. a4 {[%emt 0:00:00]} Kc7 {[%emt 0:03:21] [#]} 50. Kc3 $2 {[%emt 0:00:00][%mdl 8192]} (50. g3 $1 $16) 50... Kd6 $18 {[%emt 0:00:16]} 51. Kd4 {[%emt 0:01:50]} Kc7 {[%emt 0:00:06] [#]} 52. g4 $1 {[%emt 0:00:21]} Kd6 {[%emt 0:02:28]} 53. g5 {[%emt 0:00:24]} Kc7 {[%emt 0:00:14]} 54. Kc5 {[%emt 0:01:46]} Kc8 {[%emt 0:01:17]} (54... c3 $142 55. Kd4 c2) 55. Nc6 $2 {[%emt 0:04:30]} (55. Nf3) 55... Kc7 $18 {[%emt 0:06:23]} 56. b5 {[%emt 0:05:56]} axb5 {[%emt 0:00:12]} 57. axb5 $2 {[%emt 0:03:31]} ({White must play} 57. Kxb5 $18 Bf7 (57... c3 $2 58. Nd4 $18) 58. Kc5) 57... Kb7 $11 {[%emt 0:00:20]} 58. Na5+ {[%emt 0:01:14]} Kc8 {[%emt 0:02:04]} 59. Nc6 {[%emt 0:09:40]} Kb7 {[%emt 0:00:45]} 60. Nd4 {[%emt 0:02:41]} Kc7 $1 {[%emt 0:07:38]} 61. b6+ {[%emt 0:01:16]} Kb7 {[%emt 0:00:00]} 62. Nb5 {[%emt 0:00:14]} Kb8 $2 {[%emt 0:00:00][%mdl 8192]} (62... Be6 $11) 63. Kc6 {[%emt 0:07:44]} Bf7 {[%emt 0:00:00]} 64. Nc7 {[%emt 0:01:41]} Be8+ {[%emt 0:00:03]} 65. Nxe8 {[%emt 0:00:43]} c3 {[%emt 0:00:03]} 66. Nc7 {[%emt 0:00:05]} (66. Kxd5 $2 {loses.} c2 67. Ke6 c1=Q $19 (67... c1=R $2 {too greedy.} 68. Nf6 $18)) 1-0

[Event "Serbian-ch Semifinal 2024"]
[Site "Paracin"]
[Date "2024.02.06"]
[Round "2.9"]
[White "Pukshansky, Mikhail B"]
[Black "Cuzovic, Ognjen"]
[Result "*"]
[ECO "D31"]
[WhiteElo "2405"]
[BlackElo "2068"]
[Annotator "RC"]
[PlyCount "97"]
[EventDate "2024.02.04"]
[EventType "swiss"]
[EventCountry "SRB"]
[SourceTitle "playchess.com"]
[Source "ChessBase"]
[SourceQuality "1"]
[TimeControl "40/5400+30:1800+30"]

1. c4 {[%emt 0:04:19]} Nf6 {[%emt 0:02:26]} 2. Nc3 {[%emt 0:00:12]} e6 {[%emt 0:00:26]} 3. d4 {[%emt 0:00:07]} d5 {[%emt 0:00:15]} 4. cxd5 {[%emt 0:00:05]} exd5 {[%emt 0:00:15]} 5. Bf4 {[%emt 0:00:05]} Bd6 {[%emt 0:02:08]} 6. Bxd6 {[%emt 0:00:06]} Qxd6 {[%emt 0:00:11]} 7. e3 {[%emt 0:00:04]} c6 {[%emt 0:01:03]} 8. Bd3 {[%emt 0:00:13]} O-O {[%emt 0:01:48]} 9. h3 {[%emt 0:00:03]} Nbd7 {[%emt 0:02:49]} 10. Nf3 {[%emt 0:00:34]} Re8 {[%emt 0:01:35]} 11. Qc2 {[%emt 0:00:51]} b6 {[%emt 0:03:33]} 12. O-O {[%emt 0:00:26]} Bb7 {[%emt 0:01:07]} 13. Rab1 {[%emt 0:01:17]} c5 {[%emt 0:07:20]} 14. Nb5 {[%emt 0:04:01]} Qc6 {[%emt 0:02:52]} 15. dxc5 {[%emt 0:01:02]} bxc5 {[%emt 0:01:44]} 16. b4 {[%emt 0:05:47]} a6 {[%emt 0:08:46]} 17. Na3 {[%emt 0:06:07]} c4 {[%emt 0:11:39]} 18. Bf5 {[%emt 0:02:01]} Ne5 {[%emt 0:02:21]} 19. Nd4 {[%emt 0:00:33]} Qd6 {[%emt 0:00:49]} 20. Qe2 {[%emt 0:03:18]} Nc6 {[%emt 0:04:30]} 21. Qd2 {[%emt 0:07:58]} Qe5 {[%emt 0:04:30]} 22. Bc2 {[%emt 0:04:08]} Nxd4 {[%emt 0:01:20]} 23. exd4 {[%emt 0:03:54]} Qe2 {[%emt 0:03:27]} 24. Qxe2 {[%emt 0:00:12]} Rxe2 {[%emt 0:00:11]} 25. Rfe1 {[%emt 0:00:05]} Rae8 {[%emt 0:01:47]} 26. Kf1 {[%emt 0:00:30]} Rd2 {[%emt 0:07:25]} 27. Rbd1 {[%emt 0:00:50]} Rxd1 {[%emt 0:01:07]} 28. Rxd1 {[%emt 0:01:59]} Bc6 {[%emt 0:27:06]} 29. Nb1 {[%emt 0:01:16]} Rb8 {[%emt 0:01:37]} 30. a3 {[%emt 0:00:27]} Ne8 {[%emt 0:00:28]} 31. Nc3 {[%emt 0:53:30]} Nc7 {[%emt 0:01:29]} 32. Ra1 {[%emt 0:00:51]} Kf8 {[%emt 0:03:04]} 33. Ke1 {[%emt 0:01:37]} Ke7 {[%emt 0:01:26]} 34. Kd2 {[%emt 0:00:08]} Kd6 {[%emt 0:00:46]} 35. h4 {[%emt 0:00:05]} g6 {[%emt 0:01:19]} 36. h5 {[%emt 0:00:46]} Nb5 {[%emt 0:08:14]} 37. Ne2 {[%emt 0:52:29]} Bd7 {[%emt 0:12:09]} 38. h6 {[%emt 0:02:09]} Nc7 {[%emt 0:02:34]} 39. f3 {[%emt 0:00:53]} f5 {[%emt 0:09:18]} 40. f4 {[%emt 0:04:44]} Nb5 {[%emt 0:01:40]} 41. Ba4 {[%emt 0:36:02]} Nxd4 {[%emt 0:10:01]} 42. Nxd4 {[%emt 0:00:00]} Bxa4 {[%emt 0:00:05]} 43. Re1 {[%emt 0:00:00]} Re8 {[%emt 0:28:43]} 44. Rxe8 {[%emt 0:00:00]} Bxe8 {[%emt 0:00:06]} 45. Kc3 {[%emt 0:00:00]} Bf7 {[%emt 0:03:13]} 46. Nf3 {[%emt 0:00:00]} Kc7 {[%emt 0:04:51]} 47. Kd4 {[%emt 0:00:00]} Kd6 {[%emt 0:00:08]} 48. Ne5 {[%emt 0:00:00]} Bg8 {[%emt 0:01:56]} 49. a4 {[%emt 0:00:00]} *

[Event "Serbian-ch Semifinal 2024"]
[Site "Paracin"]
[Date "2024.02.06"]
[Round "2.10"]
[White "Sedlak, Nikola"]
[Black "Ivanovic, Marko"]
[Result "1/2-1/2"]
[ECO "D03"]
[WhiteElo "2463"]
[BlackElo "2245"]
[Annotator "RC"]
[PlyCount "66"]
[EventDate "2024.02.04"]
[EventType "swiss"]
[EventCountry "SRB"]
[SourceTitle "playchess.com"]
[Source "ChessBase"]
[SourceQuality "1"]
[TimeControl "40/5400+30:1800+30"]

1. d4 {[%emt 0:00:03]} Nf6 {[%emt 0:08:53]} 2. Nf3 {[%emt 0:00:11]} d5 {[%emt 0:00:32]} 3. c3 {[%emt 0:02:31]} e6 {[%emt 0:02:01]} 4. Bg5 {[%emt 0:00:11]} h6 {[%emt 0:00:21]} 5. Bxf6 {[%emt 0:00:14]} Qxf6 {[%emt 0:00:06]} 6. Nbd2 {[%emt 0:00:18]} c5 {[%emt 0:00:06]} 7. e3 {[%emt 0:00:36]} Nc6 {[%emt 0:01:45]} 8. Bb5 {[%emt 0:00:34]} cxd4 {[%emt 0:05:56]} 9. exd4 {[%emt 0:00:37]} Bd6 {[%emt 0:00:14]} 10. O-O {[%emt 0:00:40]} O-O {[%emt 0:00:19]} 11. Qe2 {[%emt 0:03:23]} a6 {[%emt 0:08:02]} 12. Bd3 {[%emt 0:03:59]} e5 {[%emt 0:16:58]} 13. Nxe5 {[%emt 0:00:31]} Nxe5 {[%emt 0:00:07]} 14. dxe5 {[%emt 0:00:13]} Qxe5 {[%emt 0:05:47]} 15. Qxe5 {[%emt 0:00:30]} Bxe5 {[%emt 0:00:04]} 16. Nf3 {[%emt 0:00:35]} Bf6 {[%emt 0:00:05]} 17. Rfe1 {[%emt 0:00:41]} Bd7 {[%emt 0:04:30]} 18. Bc2 {[%emt 0:05:17]} Rfe8 {[%emt 0:07:33]} 19. Bb3 {[%emt 0:00:57]} Bc6 {[%emt 0:00:17]} 20. Red1 {[%emt 1:18:29]} Re2 {[%emt 0:04:47]} 21. Rab1 {[%emt 0:00:00]} Rd8 {[%emt 0:00:24]} 22. Kf1 {[%emt 0:00:00]} Re4 {[%emt 0:01:00]} 23. Bc2 {[%emt 0:00:00]} Rf4 {[%emt 0:02:58]} 24. Ne1 {[%emt 0:00:00]} Be7 {[%emt 0:09:57]} 25. g3 {[%emt 0:00:00]} Rf6 {[%emt 0:00:11]} 26. Rd2 {[%emt 0:00:00]} d4 {[%emt 0:04:04]} 27. Rbd1 {[%emt 0:00:00]} Rfd6 {[%emt 0:00:06]} 28. c4 {[%emt 0:00:00]} a5 {[%emt 0:01:26]} 29. Nd3 {[%emt 0:00:00]} Bf3 {[%emt 0:01:24]} 30. c5 {[%emt 0:00:00]} Rd5 {[%emt 0:03:50]} 31. h4 {[%emt 0:00:00]} Bxd1 {[%emt 0:04:43]} 32. Bxd1 {[%emt 0:00:00]} g6 {[%emt 0:02:00]} 33. a3 {[%emt 0:00:00]} Rxc5 {[%emt 0:04:40]} 1/2-1/2

[Event "Serbian-ch Semifinal 2024"]
[Site "Paracin"]
[Date "2024.02.06"]
[Round "2.11"]
[White "Injac, Teodora"]
[Black "Ravic, Nenad"]
[Result "1-0"]
[ECO "A26"]
[WhiteElo "2439"]
[BlackElo "2202"]
[Annotator "TA"]
[PlyCount "69"]
[EventDate "2024.02.04"]
[EventType "swiss"]
[EventCountry "SRB"]
[SourceTitle "playchess.com"]
[Source "ChessBase"]
[SourceQuality "1"]
[TimeControl "40/5400+30:1800+30"]

{[%evp 16,69,12,12,13,16,12,14,14,14,14,14,14,14,14,14,14,14,17,5,15,22,36,25,36,30,46,50,48,45,59,33,33,31,83,64,142,142,155,159,460,424,608,606,610,587,763,691,1041,902,1113,1114,29992,29993,29996,29996]} 1. c4 {[%emt 0:00:03]} Nf6 {[%emt 0:05:33]} 2. Nc3 {[%emt 0:00:26]} g6 {[%emt 0:00:03]} 3. g3 {[%emt 0:02:10]} Bg7 {[%emt 0:00:06]} 4. Bg2 {[%emt 0:00:03]} O-O {[%emt 0:00:07]} 5. d3 {[%emt 0:01:02]} d6 {[%emt 0:00:20]} 6. Rb1 {[%emt 0:00:45]} a5 {[%emt 0:00:27]} 7. Nf3 {[%emt 0:02:46]} Nc6 {[%emt 0:00:06][%cal Bb8c6,Bc6d4,Bd4e2][%mdl 32]} 8. O-O {[%emt 0:00:23]} e5 {[%emt 0:00:05]} 9. b3 {[%emt 0:00:23]} Re8 {[%emt 0:01:33]} 10. e4 {[%emt 0:02:58]} Bg4 {[%emt 0:06:48]} 11. h3 {[%emt 0:01:44]} Bxf3 {[%emt 0:00:04] The position is equal.} 12. Bxf3 {[%emt 0:00:27]} Nd4 {[%emt 0:00:09]} 13. Bg2 {[%emt 0:00:28]} Nd7 {[%emt 0:01:02]} 14. Ne2 {[%emt 0:06:48]} Nxe2+ {[%emt 0:01:24]} 15. Qxe2 {[%emt 0:00:02]} Nc5 {[%emt 0:00:13]} 16. Be3 {[%emt 0:06:32]} Ne6 {[%emt 0:00:38]} 17. Qd2 {[%emt 0:06:32]} Qd7 {[%emt 0:04:41]} 18. h4 {[%emt 0:05:03]} Nd4 {[%emt 0:05:02]} 19. Bxd4 {[%emt 0:03:09]} exd4 {[%emt 0:00:09]} 20. Kh2 {[%emt 0:01:59]} c5 {[%emt 0:08:40]} 21. Bh3 {[%emt 0:02:38]} Qc7 {[%emt 0:05:17]} 22. f4 $36 {[%emt 0:06:50][%mdl 2048] White has some pressure.} h5 {[%emt 0:07:57]} 23. a4 {[%emt 0:07:23]} Kh7 {[%emt 0:03:34]} 24. Rf3 {[%emt 0:00:46]} Re7 {[%emt 0:00:56]} (24... Bh6 $14) 25. Qg2 {[%emt 0:02:24]} Qb6 {[%emt 0:05:48]} ({Black should play} 25... Rh8 $14) 26. g4 $16 {[%emt 0:05:00]} hxg4 {[%emt 0:00:03]} 27. Qxg4 {[%emt 0:00:05] Threatens to win with h5.} Qb4 $2 {[%emt 0:01:17] This costs Black the game.} (27... Rg8 $16 {is more resistant.} 28. h5 Qd8) 28. Rg1 $18 {[%emt 0:04:49]} Bf6 {[%emt 0:11:29] [#]} (28... Kg8 $142 29. Qg5 Qd2+ 30. Kh1 Kf8) 29. e5 $1 {[%emt 0:24:15][%mdl 512]} dxe5 {[%emt 0:04:13]} 30. f5 {[%emt 0:00:01]} Rg8 {[%emt 0:01:32]} 31. Qe4 {[%emt 0:02:34]} Qb6 {[%emt 0:11:08]} 32. fxg6+ {[%emt 0:00:21]} fxg6 {[%emt 0:00:04] Black is weak on the light squares} 33. h5 {[%emt 0:00:04][%cal Bh4h5,Bh5g6][%mdl 32]} Bh8 {[%emt 0:07:54]} 34. hxg6+ {[%emt 0:00:32]} Kg7 {[%emt 0:00:08]} 35. Qh4 {[%emt 0:00:15] Weighted Error Value: White=0.08 (flawless) /Black=0.64.  Loses game:     	---       	Black=1      Mistake:       	---       	Black=3      Inaccurate:     	White=1     	Black=1      OK:         	White=11    	Black=6} 1-0

[Event "Serbian-ch Semifinal 2024"]
[Site "Paracin"]
[Date "2024.02.06"]
[Round "3.1"]
[White "Ratkovic, Milovan"]
[Black "Cabarkapa, Novak"]
[Result "1/2-1/2"]
[ECO "D14"]
[WhiteElo "2396"]
[BlackElo "2434"]
[Annotator "TA"]
[PlyCount "22"]
[EventDate "2024.02.04"]
[EventType "swiss"]
[EventCountry "SRB"]
[SourceTitle "playchess.com"]
[Source "ChessBase"]
[SourceQuality "1"]
[TimeControl "40/5400+30:1800+30"]

{[%evp 17,22,0,0,0,0,0,0]} 1. d4 {[%emt 0:02:32]} d5 {[%emt 0:00:04]} 2. c4 {[%emt 0:00:05]} c6 {[%emt 0:00:04]} 3. Nc3 {[%emt 0:00:07]} Nf6 {[%emt 0:00:05]} 4. cxd5 {[%emt 0:00:05]} cxd5 {[%emt 0:00:04]} 5. Bf4 {[%emt 0:00:11]} Nc6 {[%emt 0:00:08]} 6. e3 {[%emt 0:00:05]} Bf5 {[%emt 0:00:12]} 7. Bd3 {[%emt 0:00:08]} Bxd3 {[%emt 0:00:06]} 8. Qxd3 {[%emt 0:00:04]} e6 {[%emt 0:00:04]} 9. Nf3 {[%emt 0:00:07]} Bd6 {[%emt 0:00:03] The position is equal.} 10. Bxd6 {[%emt 0:00:07]} Qxd6 {[%emt 0:00:04]} 11. O-O {[%emt 0:00:06]} O-O {[%emt 0:00:03] An uneventful encounter.   OK:         	White=1     	Black=1} 1/2-1/2